[Event "76th Montenegro Championship 2024"]
[Site "Podgorica"]
[Date "2024.02.15"]
[Round "11.5"]
[White "Smirnov, Artem"]
[Black "Vujosevic, Vladimir"]
[Result "1-0"]
[ECO "E41"]
[WhiteElo "2406"]
[BlackElo "2335"]
[Annotator "TA"]
[PlyCount "69"]
[EventDate "2024.02.06"]
[EventType "swiss"]
[EventCountry "MNE"]
[SourceTitle "playchess.com"]
[Source "ChessBase"]
[SourceQuality "1"]
[TimeControl "40/5400+30:1800+30"]

{[%evp 18,69,37,45,45,28,27,31,22,31,76,13,72,0,0,-10,5,-20,47,39,44,44,45,38,54,0,97,77,99,76,70,64,129,118,99,43,131,121,122,123,137,67,70,37,151,129,172,170,154,163,161,148,222,192]} 1. d4 {[%emt 0:04:33]} Nf6 {[%emt 0:00:24]} 2. c4 {[%emt 0:00:10]} e6 {[%emt 0:00:28]} 3. Nc3 {[%emt 0:00:08]} Bb4 {[%emt 0:01:20]} 4. e3 {[%emt 0:00:10]} c5 {[%emt 0:00:44]} 5. Bd3 {[%emt 0:02:08]} Nc6 {[%emt 0:03:16]} 6. Nf3 {[%emt 0:05:35]} Bxc3+ {[%emt 0:00:48]} 7. bxc3 {[%emt 0:00:07]} d6 {[%emt 0:00:30]} 8. e4 {[%emt 0:03:08]} e5 {[%emt 0:01:16]} 9. d5 {[%emt 0:04:35]} Ne7 {[%emt 0:01:20]} 10. Nh4 {[%emt 0:04:39]} h6 {[%emt 0:20:55]} 11. h3 {[%emt 0:09:28]} Qa5 {[%emt 0:06:45]} 12. Qb3 {[%emt 0:08:12]} g5 {[%emt 0:03:17] White is slightly better.} 13. Nf3 {[%emt 0:00:42]} Qc7 {[%emt 0:01:28]} 14. g3 {[%emt 0:18:55]} (14. Rb1 $16) 14... Nh5 {[%emt 0:06:56]} (14... Bd7 $1 $11) 15. Qc2 {[%emt 0:06:01]} ({White should try} 15. Nd2 $16) 15... Bd7 $1 $11 {[%emt 0:00:55]} 16. Nd2 {[%emt 0:04:28]} Ng7 {[%emt 0:01:07]} 17. Nf1 {[%emt 0:04:33]} f5 {[%emt 0:05:53]} (17... O-O-O $11) 18. h4 {[%emt 0:03:37]} fxe4 {[%emt 0:01:29]} 19. Bxe4 {[%emt 0:00:08]} g4 {[%emt 0:00:12]} 20. Bg6+ {[%emt 0:02:58]} Kd8 {[%emt 0:01:03]} 21. Ne3 {[%emt 0:01:50]} (21. Bd3 $14) 21... h5 {[%emt 0:04:30]} (21... Qa5 $11 {keeps the balance.} 22. Be4 Kc7) 22. Be4 {[%emt 0:03:18]} Kc8 {[%emt 0:00:42]} 23. O-O {[%emt 0:00:25] And now f4 would win.} Rf8 {[%emt 0:05:28]} 24. f3 {[%emt 0:02:27]} Qd8 {[%emt 0:00:20]} (24... gxf3 $14 25. Bxf3 (25. Rxf3 Rxf3 26. Bxf3 Nef5 $16) 25... Qd8) 25. fxg4 $16 {[%emt 0:03:46]} hxg4 {[%emt 0:00:19]} 26. Bb2 {[%emt 0:02:49]} (26. Rxf8 $16 Qxf8 27. Bd2) 26... Kc7 {[%emt 0:09:11]} ({Black should play} 26... Nh5 $14 27. Rxf8 Qxf8) 27. Rxf8 {[%emt 0:00:08]} Qxf8 {[%emt 0:00:32]} 28. Rf1 {[%emt 0:00:01]} Qe8 {[%emt 0:00:47]} 29. Qf2 {[%emt 0:00:40] White is much more active.} ({Better is} 29. Bc1 $16) 29... Nh5 $14 {[%emt 0:01:52]} 30. Bc1 {[%emt 0:02:12]} (30. Ba3 $5) 30... Qh8 {[%emt 0:00:57] [#]} (30... Ng8 $1 $14) 31. Ng2 $1 $36 {[%emt 0:02:07][%mdl 2048] Strongly threatening Bg5. Keeping Black busy.} Rg8 {[%emt 0:07:49]} 32. Bg5 {[%emt 0:00:04] White is clearly better.} Ng6 {[%emt 0:00:27]} 33. Qe1 {[%emt 0:01:18]} Qg7 {[%emt 0:01:43]} 34. Ne3 {[%emt 0:00:40]} Ne7 {[%emt 0:01:28]} (34... Nf8 $16 35. Nf5 Bxf5 36. Bxf5 (36. Rxf5 Nd7 $18) 36... Nh7) 35. Qf2 {[%emt 0:00:41] Weighted Error Value: White=0.21 (precise) /Black=0.34.  Mistake:       	White=5     	Black=7      Inaccurate:     	White=1     	Black=1      OK:         	White=6     	Black=7      Best:        	White=4     	Black=1      Strong:       	---       	Black=1} 1-0

[Event "76th Montenegro Championship 2024"]
[Site "Podgorica"]
[Date "2024.02.15"]
[Round "11.6"]
[White "Nikcevic, Nebojsa"]
[Black "Milovic, Jovan"]
[Result "1/2-1/2"]
[ECO "B06"]
[WhiteElo "2338"]
[BlackElo "2223"]
[Annotator "TA"]
[PlyCount "110"]
[EventDate "2024.02.06"]
[EventType "swiss"]
[EventCountry "MNE"]
[SourceTitle "playchess.com"]
[Source "ChessBase"]
[SourceQuality "1"]
[TimeControl "40/5400+30:1800+30"]

{[%evp 24,110,162,139,247,127,132,126,129,112,115,87,83,84,96,87,86,102,122,129,125,125,122,134,127,131,124,131,131,129,134,117,141,128,125,103,183,198,191,189,262,245,245,268,283,283,283,298,298,298,286,8,19,8,8,8,8,8,8,8,8,8,8,8,8,8,8,8,8,8,8,8,416,416,416,416,416,416,29972,29973,29973,29974,29974,416,416,416,416,416,416]} 1. d4 {[%emt 0:04:41]} g6 {[%emt 0:00:43]} 2. e4 {[%emt 0:00:31]} Bg7 {[%emt 0:00:08]} 3. Nc3 {[%emt 0:03:01]} d5 {[%emt 0:01:39]} 4. e5 {[%emt 0:01:20]} c5 {[%emt 0:00:41]} 5. dxc5 {[%emt 0:06:00]} d4 {[%emt 0:01:03]} 6. Nb5 {[%emt 0:00:47] B06: Modern Defence.} Bxe5 {[%emt 0:03:19]} 7. Nf3 {[%emt 0:00:38]} Bg4 {[%emt 0:01:06]} 8. Nbxd4 $146 {[%emt 0:00:16]} ({Predecessor:} 8. Bc4 Nc6 9. c3 dxc3 10. Qb3 Na5 11. Bxf7+ Kf8 12. Nxe5 Nxb3 13. Bxb3 cxb2 14. Bxb2 {0-1 Baci,V (2206)-Vozovic,O (2356) Pardubice op-A 2006 (3)}) 8... Qa5+ {[%emt 0:07:59]} 9. c3 {[%emt 0:06:16]} Qxc5 {[%emt 0:00:49]} 10. Be3 {[%emt 0:00:49]} Qc8 {[%emt 0:07:28]} 11. Bb5+ {[%emt 0:04:56]} Kf8 {[%emt 0:02:59]} 12. Qb3 {[%emt 0:01:04]} Bxd4 {[%emt 0:03:10]} 13. Nxd4 {[%emt 0:03:10]} (13. Bxd4 $6 Bxf3 14. Bxh8 (14. gxf3 Nf6 $16) 14... Bxg2 $16) 13... e5 {[%emt 0:00:34]} (13... Nc6 $16 14. Nxc6 bxc6) 14. Nf3 {[%emt 0:10:10]} (14. f3 $18 Bd7 15. Bxd7 Nxd7 16. Nb5) 14... Bxf3 $16 {[%emt 0:02:23]} 15. gxf3 {[%emt 0:00:07]} Kg7 {[%emt 0:00:26]} 16. O-O-O {[%emt 0:12:00]} Nc6 {[%emt 0:02:30]} 17. Bxc6 {[%emt 0:03:40]} bxc6 {[%emt 0:01:46]} 18. Rd6 {[%emt 0:06:56]} Ne7 {[%emt 0:01:23]} 19. Qc4 {[%emt 0:02:50]} Re8 {[%emt 0:06:19]} 20. Bg5 {[%emt 0:04:53]} Qh3 {[%emt 0:03:32]} 21. Qg4 {[%emt 0:03:45]} Qxg4 {[%emt 0:03:25]} 22. fxg4 {[%emt 0:00:34]} Rac8 {[%emt 0:01:07]} 23. Rd7 {[%emt 0:07:19]} (23. Bf6+ $6 Kf8 $11) 23... Nd5 {[%emt 0:01:13]} 24. Rxa7 {[%emt 0:00:14]} Ra8 {[%emt 0:03:56]} 25. Rxa8 {[%emt 0:00:26]} Rxa8 {[%emt 0:00:07]} 26. Kb1 {[%emt 0:02:20]} Ra4 {[%emt 0:00:24]} 27. h3 {[%emt 0:03:02]} f5 {[%emt 0:02:36]} 28. gxf5 {[%emt 0:02:14]} gxf5 {[%emt 0:00:06]} 29. Bd2 {[%emt 0:00:15]} Re4 {[%emt 0:04:01]} (29... c5 $16 30. b3 Ra6 31. Rg1+ Kf7) 30. Re1 $18 {[%emt 0:02:16]} Rxe1+ {[%emt 0:00:22]} 31. Bxe1 {[%emt 0:00:04]} Nf4 {[%emt 0:00:47]} (31... Kf7 $142 32. Bd2 Ke6) 32. a4 $18 {[%emt 0:03:24]} Nxh3 {[%emt 0:00:15]} 33. a5 {[%emt 0:01:08]} Nf4 {[%emt 0:00:57]} 34. c4 {[%emt 0:02:03]} (34. a6 Ne6 $14) 34... Ne6 {[%emt 0:00:17]} 35. Bc3 {[%emt 0:00:38]} (35. a6 Nc7 $18) 35... Kf6 {[%emt 0:01:33]} 36. f4 {[%emt 0:00:35]} (36. a6 Nc7 $18) 36... Ke7 {[%emt 0:02:52]} (36... Nxf4 $2 37. a6 $18) 37. Bxe5 $2 {[%emt 0:02:05]} (37. fxe5 $18 {Hoping for a6.} Nc7 38. Kc2) 37... Kd7 $1 $11 {[%emt 0:01:22]} 38. Kc2 {[%emt 0:00:43]} c5 {[%emt 0:00:42]} 39. Kd3 {[%emt 0:01:21]} (39. a6 {keeps more tension.} Kc6 40. a7 Kb7 41. Bb8) 39... Kc6 {[%emt 0:00:51]} 40. Ke3 {[%emt 0:00:00]} Kb7 {[%emt 0:00:00]} 41. Bc3 {[%emt 0:03:10]} h5 {[%emt 0:03:36]} 42. Kf3 {[%emt 0:03:58]} Nd4+ {[%emt 0:06:15]} 43. Kg2 {[%emt 0:00:48]} ({Avoid the trap} 43. Bxd4 $2 cxd4 44. Ke2 h4 $19) (43. Kg3 $5 Ne2+ $8 44. Kh4 (44. Kf3 Nxc3 45. bxc3 Ka6 $11) 44... Nxf4 45. Kg5 Ne6+ 46. Kxh5 $14 (46. Kxf5 Nd4+ 47. Kg5 Ka6 $11)) 43... Ne2 {[%emt 0:00:23]} 44. Bd2 {[%emt 0:00:09]} Ka6 {[%emt 0:00:12]} 45. Kh3 {[%emt 0:07:10]} (45. Kf2 $5 Nd4 $8 46. Kg3 $11) 45... Nd4 {[%emt 0:06:09]} 46. b4 {[%emt 0:04:48]} (46. Kg3 $5) 46... cxb4 {[%emt 0:00:33]} 47. Bxb4 {[%emt 0:00:05]} Nc2 $2 {[%emt 0:00:12][%mdl 8192]} (47... Ne2 $11) 48. Bd2 $18 {[%emt 0:00:15]} Na3 {[%emt 0:00:23]} 49. c5 {[%emt 0:03:27]} Nc4 {[%emt 0:01:25]} 50. Be1 {[%emt 0:02:59]} Nb2 {[%emt 0:02:19]} (50... Kb5 $18 51. Kh4 Kxc5 52. Kxh5 Nd6) 51. c6 {[%emt 0:00:55]} Nd3 {[%emt 0:00:29]} 52. Bd2 {[%emt 0:00:06]} Nc5 {[%emt 0:01:42]} 53. Kh4 {[%emt 0:00:17]} (53. Bc3 $142 Nd3 54. Be5 Nb4 55. c7 Kb7 56. Kh4 Nd5 57. a6+ (57. Kxh5 Ne7 58. Kg5 Ka6 59. Kf6 Nd5+ 60. Kxf5 Kxa5 61. Ke6 Nb6) 57... Kc8 58. Kxh5) 53... Ne6 $18 {[%emt 0:00:13]} 54. Kxh5 {[%emt 0:01:46]} Kb5 {[%emt 0:00:06]} 55. Kg6 {[%emt 0:06:35]} Kxc6 {[%emt 0:00:14]} 1/2-1/2

[Event "76th Montenegro Championship 2024"]
[Site "Podgorica"]
[Date "2024.02.15"]
[Round "11.7"]
[White "Djurovic, Peko"]
[Black "Scekic, Veljko"]
[Result "1/2-1/2"]
[ECO "B45"]
[WhiteElo "2332"]
[BlackElo "2206"]
[Annotator "TA"]
[PlyCount "145"]
[EventDate "2024.02.06"]
[EventType "swiss"]
[EventCountry "MNE"]
[SourceTitle "playchess.com"]
[Source "ChessBase"]
[SourceQuality "1"]
[TimeControl "40/5400+30:1800+30"]

{[%evp 15,145,37,58,35,62,52,60,50,53,15,37,18,51,51,57,47,62,47,62,39,53,37,47,31,56,59,68,53,48,48,60,63,68,69,66,47,46,51,55,45,86,69,83,83,111,95,80,80,135,103,96,47,87,0,111,108,119,125,126,39,44,0,125,132,131,127,127,126,239,226,229,183,263,43,42,42,42,35,130,120,200,199,199,114,121,88,114,113,242,130,199,199,278,278,293,293,360,360,387,360,402,199,394,394,387,387,387,199,199,104,104,104,104,104,104,104,104,104,104,104,104,104,104,104,104,104,104,104,104,104,104,0]} 1. e4 {[%emt 0:00:17]} c5 {[%emt 0:00:49]} 2. Nf3 {[%emt 0:00:09]} e6 {[%emt 0:00:06]} 3. d4 {[%emt 0:00:23]} cxd4 {[%emt 0:03:50]} 4. Nxd4 {[%emt 0:00:06]} Nf6 {[%emt 0:00:13]} 5. Nc3 {[%emt 0:00:20]} Nc6 {[%emt 0:00:26]} 6. Nxc6 {[%emt 0:00:08]} dxc6 {[%emt 0:01:17]} 7. Qxd8+ {[%emt 0:02:54]} Kxd8 {[%emt 0:00:06]} 8. Bf4 {[%emt 0:05:22]} Bb4 {[%emt 0:03:54]} 9. O-O-O+ {[%emt 0:01:29]} Ke8 {[%emt 0:01:53]} 10. f3 {[%emt 0:10:33]} b6 {[%emt 0:06:02]} 11. Bc4 {[%emt 0:18:02] White is slightly better.} Bb7 {[%emt 0:01:28]} 12. Rd3 {[%emt 0:09:42]} Rd8 {[%emt 0:05:46]} 13. Rhd1 {[%emt 0:01:36]} (13. a3 {simplifies} Be7 14. Rhd1 Rxd3 15. cxd3 b5 16. Ba2) 13... Ke7 {[%emt 0:17:10]} (13... Rxd3 {simplifies} 14. Bxd3 h5 15. Be2 Nd7) 14. a3 {[%emt 0:01:24]} Bxc3 {[%emt 0:01:15]} 15. Rxc3 {[%emt 0:00:07]} Rxd1+ {[%emt 0:00:06]} 16. Kxd1 {[%emt 0:00:01]} Rd8+ {[%emt 0:01:25]} 17. Ke2 {[%emt 0:01:15]} Nd7 {[%emt 0:01:01]} 18. b4 {[%emt 0:01:53]} e5 {[%emt 0:00:43]} 19. Be3 {[%emt 0:00:24]} Nf8 {[%emt 0:01:33]} 20. a4 {[%emt 0:02:38]} Ne6 {[%emt 0:00:32]} 21. Bxe6 {[%emt 0:01:10]} Kxe6 $14 {[%emt 0:00:25][%mdl 4096] Endgame. KRB-KRB} 22. a5 {[%emt 0:00:08]} Rb8 {[%emt 0:07:39]} 23. Kf2 {[%emt 0:06:26]} Ba8 {[%emt 0:05:12]} 24. a6 {[%emt 0:04:28]} Rc8 {[%emt 0:11:04]} 25. Rb3 {[%emt 0:04:10]} c5 {[%emt 0:01:55]} 26. bxc5 {[%emt 0:00:07]} bxc5 {[%emt 0:00:08]} 27. Rb5 {[%emt 0:01:17]} Kd6 {[%emt 0:00:06]} 28. c4 {[%emt 0:00:06]} f6 {[%emt 0:05:04]} 29. g4 {[%emt 0:01:38]} g6 {[%emt 0:05:41]} 30. Ke2 {[%emt 0:02:19]} Rc7 {[%emt 0:07:12]} 31. h4 {[%emt 0:04:01]} h5 {[%emt 0:02:48]} (31... Bc6 $142) 32. gxh5 {[%emt 0:00:23]} gxh5 {[%emt 0:00:05]} 33. Kf2 {[%emt 0:20:32]} (33. Kd3 $16) 33... Rc8 {[%emt 0:00:07]} 34. Ke2 {[%emt 0:00:03]} Rc7 $1 {[%emt 0:00:09]} 35. Kd3 {[%emt 0:01:14]} Rc8 {[%emt 0:00:09]} 36. Kc3 {[%emt 0:00:28]} Rc7 {[%emt 0:09:42]} 37. Bh6 {[%emt 0:00:36]} (37. Rb2 $16) 37... Rc8 $1 {[%emt 0:00:14]} 38. Be3 {[%emt 0:00:13]} (38. Rb2 $14) 38... Rc7 $1 $16 {[%emt 0:00:15]} 39. Rb8 {[%emt 0:00:51] Prevents Rc8.} Bc6 {[%emt 0:00:04]} 40. Rf8 {[%emt 0:00:00]} Ke6 {[%emt 0:00:00]} 41. Bxc5 {[%emt 0:05:17] Strongly threatening Kb4. White is more active.} Ba4 {[%emt 0:04:51]} (41... Bd7 $16 42. Kb4 Bc8) 42. Kb4 $18 {[%emt 0:10:28] Hoping for Bb6.} Bd1 {[%emt 0:00:07]} 43. Rb8 {[%emt 0:00:46]} Bxf3 {[%emt 0:00:29] [#]} (43... Kd7 $142) 44. Rb7 $2 {[%emt 0:00:12]} ({White must play} 44. Bxa7 $1 $18 {Threatens to win with Bb6.} Bxe4 (44... Rxa7 $2 45. Rb6+ Kd7 46. Rxf6 $18) 45. Bb6) 44... Kd7 $14 {[%emt 0:00:30] [#]} 45. Bb6 $1 {[%emt 0:01:07]} axb6 {[%emt 0:00:58] KRB-KR} 46. a7 {[%emt 0:00:05]} Bxe4 {[%emt 0:03:56]} (46... Rxb7 $14 47. a8=Q (47. a8=B $2 Ra7 $19) 47... Rc7) 47. a8=Q $16 {[%emt 0:00:11]} Bxb7 {[%emt 0:00:20] KQ-KRB} (47... Rxb7 $16 48. Qh8 Ke6) 48. Qh8 $18 {[%emt 0:00:23]} Ba6 {[%emt 0:06:56]} 49. Qxf6 {[%emt 0:02:26]} ({Better is} 49. Qg7+ $18 Kc8 50. Qxf6) 49... Rxc4+ $16 {[%emt 0:00:15]} 50. Kb3 {[%emt 0:00:05]} Rc5 {[%emt 0:01:48]} 51. Qf7+ {[%emt 0:00:45]} (51. Qxb6 Rb5+) 51... Kc6 {[%emt 0:01:41]} (51... Kd6 $16 {was worth a try.} 52. Qxh5 Bc4+ 53. Ka3 e4 54. Qh6+ Be6 55. Qf8+ Kd7) 52. Qg6+ {[%emt 0:01:19]} (52. Qxh5 $18 {Black must now prevent Qe8+.} Rb5+ 53. Kc3 Rc5+ 54. Kd2) 52... Kb7 {[%emt 0:00:13]} (52... Kd7 $16) 53. Qxh5 $18 {[%emt 0:00:10] aiming for Qf7+.} Bc4+ {[%emt 0:05:07]} (53... Bd3 $142 54. Qf7+ Kc6 55. Qe6+ Kc7) 54. Kb4 {[%emt 0:05:13]} Bd3 {[%emt 0:05:49]} 55. Qf7+ {[%emt 0:02:01]} Kc8 {[%emt 0:04:02]} 56. h5 {[%emt 0:01:50][%cal Bh4h5,Bh5h6][%mdl 32]} Bc2 {[%emt 0:00:04]} 57. h6 {[%emt 0:00:59]} Kb8 {[%emt 0:00:07]} 58. Qd7 {[%emt 0:01:58]} (58. h7 $142 Bxh7 59. Qxh7) 58... Ka8 $2 {[%emt 0:00:41]} (58... Rc7 {might work better.} 59. Qd8+ Kb7 60. Qd5+ Ka7) 59. Ka3 {[%emt 0:00:18]} Kb8 {[%emt 0:00:36]} 60. Kb2 {[%emt 0:00:05] Threatening mate with Qd6+.} Be4 {[%emt 0:01:15]} 61. Qd2 {[%emt 0:02:19]} (61. h7 $142 Bxh7 62. Qxh7) 61... Kb7 {[%emt 0:01:05]} (61... Rc2+ 62. Qxc2 Bxc2 63. Kxc2 Kc8 64. h7 Kd7 65. h8=Q (65. h8=R Ke6 $18) 65... e4 66. Qe5) 62. Qe2 {[%emt 0:00:49]} (62. Qd6 $18) 62... Bh7 $16 {[%emt 0:00:45] White is better.} ({Stronger than} 62... Rc2+ 63. Qxc2 Bxc2 64. Kxc2 e4 65. h7 Kc6 66. h8=Q (66. h8=R Kd6 67. Rh6+ Kc5 68. Kc3 Kb5 69. Kd4 e3 70. Re6 e2 71. Rxe2 Kc6) 66... Kd6 67. Qd4+ Ke6 68. Qxe4+ (68. Qxb6+ Kd5 69. Kd2 Kc4 70. Ke3 Kd5 71. Qb5+ Ke6 72. Kxe4 Kf6 73. Qc6+ Kg5) 68... Kf6 69. Kd3) 63. Qh5 {[%emt 0:02:08][%mdl 1024] White has strong compensation.} e4 {[%emt 0:00:44]} 64. Qf7+ {[%emt 0:00:06]} Rc7 {[%emt 0:00:07]} 65. Qd5+ {[%emt 0:00:01]} Kb8 {[%emt 0:00:22]} 66. Kb3 {[%emt 0:01:48]} Rc5 {[%emt 0:01:50]} 67. Qd8+ {[%emt 0:00:14]} Kb7 {[%emt 0:00:05]} 68. Kb4 {[%emt 0:00:09]} Rc7 {[%emt 0:00:13]} 69. Qe8 {[%emt 0:02:12]} Rc5 {[%emt 0:00:26]} 70. Qe6 {[%emt 0:00:28]} Rc7 {[%emt 0:00:13]} 71. Qd5+ {[%emt 0:00:32]} Ka7 {[%emt 0:00:14]} 72. Qe5 {[%emt 0:00:34]} Kb7 {[%emt 0:00:08]} 73. Qd5+ {[%emt 0:00:09] Weighted Error Value: White=0.26 (precise) /Black=0.31.  Missed win:     	White=1     	---        Mistake:       	White=9     	Black=9      Inaccurate:     	White=1     	Black=5      OK:         	White=21    	Black=12     Best:        	White=3     	Black=10     Strong:       	---       	Black=3      Brilliant:      	White=1     	---} (73. Qd6 $16) 1/2-1/2

[Event "76th Montenegro Championship 2024"]
[Site "Podgorica"]
[Date "2024.02.15"]
[Round "11.8"]
[White "Vujovic, Savo"]
[Black "Skvortsova, Alena"]
[Result "1-0"]
[ECO "D44"]
[WhiteElo "2137"]
[BlackElo "2111"]
[Annotator "NA RC"]
[PlyCount "73"]
[EventDate "2024.02.06"]
[EventType "swiss"]
[EventCountry "MNE"]
[SourceTitle "playchess.com"]
[Source "ChessBase"]
[SourceQuality "1"]
[TimeControl "40/5400+30:1800+30"]

1. d4 {[%emt 0:00:14]} d5 {[%emt 0:04:57]} 2. c4 {[%emt 0:00:07]} c6 {[%emt 0:00:03]} 3. Nf3 {[%emt 0:00:06]} Nf6 {[%emt 0:00:05]} 4. Nc3 {[%emt 0:00:06]} dxc4 {[%emt 0:00:07]} 5. a4 {[%emt 0:00:14]} e6 {[%emt 0:00:11]} 6. e4 {[%emt 0:03:59]} Bb4 {[%emt 0:00:24]} 7. Bg5 {[%emt 0:07:09]} h6 {[%emt 0:07:06]} 8. Bxf6 {[%emt 0:00:07]} Qxf6 {[%emt 0:00:09]} 9. e5 {[%emt 0:02:52]} Qd8 {[%emt 0:05:22]} 10. Bxc4 {[%emt 0:02:22]} O-O {[%emt 0:06:42]} 11. O-O {[%emt 0:03:09]} c5 {[%emt 0:14:12]} 12. d5 {[%emt 0:17:22]} Bxc3 {[%emt 0:02:30]} 13. dxe6 {[%emt 0:22:34]} Bxe6 {[%emt 0:11:12]} 14. Bxe6 {[%emt 0:00:29]} fxe6 {[%emt 0:05:48]} 15. bxc3 {[%emt 0:00:46]} Nc6 {[%emt 0:03:34]} 16. Qe2 {[%emt 0:01:18]} Rf5 {[%emt 0:05:34]} 17. Rfd1 {[%emt 0:03:53]} Qe7 {[%emt 0:00:20]} 18. Rd2 {[%emt 0:04:34]} Raf8 {[%emt 0:05:06]} 19. Rad1 {[%emt 0:04:00]} Rxf3 {[%emt 0:05:48]} 20. gxf3 {[%emt 0:01:07]} Qg5+ {[%emt 0:00:03]} 21. Kh1 {[%emt 0:01:20]} Nxe5 {[%emt 0:00:05]} 22. Rg1 {[%emt 0:11:10]} Qf5 {[%emt 0:10:57]} 23. Rg3 {[%emt 0:01:30]} Nxf3 {[%emt 0:02:55]} 24. Rd7 {[%emt 0:00:41]} g5 {[%emt 0:00:40]} 25. Qd3 {[%emt 0:01:03]} Qxd3 {[%emt 0:01:18]} 26. Rxd3 {[%emt 0:00:04]} Ne5 {[%emt 0:00:13]} 27. Rde3 {[%emt 0:00:53]} Ng6 {[%emt 0:05:07]} 28. Rxe6 {[%emt 0:01:04]} Kf7 {[%emt 0:00:03]} 29. Rd6 {[%emt 0:01:30]} Re8 {[%emt 0:02:55]} 30. Re3 {[%emt 0:00:14]} Ne5 {[%emt 0:00:45]} 31. Rxh6 {[%emt 0:02:18]} Kg7 {[%emt 0:00:04]} 32. Rd6 {[%emt 0:00:11]} b6 {[%emt 0:00:30]} 33. h4 {[%emt 0:01:22]} g4 {[%emt 0:00:57]} 34. h5 {[%emt 0:00:52]} Nf7 {[%emt 0:01:07]} 35. Rg6+ {[%emt 0:00:14]} Kf8 {[%emt 0:00:05]} 36. Rxe8+ {[%emt 0:00:06]} Kxe8 {[%emt 0:00:03]} 37. h6 {[%emt 0:00:08]} 1-0